bitfinex/quotes_ETHUSD_20241106
["timestamp","ask_amount","ask_price","bid_price","bid_amount"]
[1730860020758,0.8001,2539.2,2538.6,3.93909]
[1730860021048,3.9471,2540.0,2538.5,0.04]
[1730860021049,0.8632951,2539.6,2538.9,3.93859]
[1730860021268,0.0631951,2539.6,2539.5,3.93778]
[1730860021616,0.005,2540.6,2540.5,3.93623]
[1730860021817,0.8001,2541.5,2540.5,4.01493723]
[1730860022020,0.8001,2541.5,2540.7,3.93592]
[1730860022419,3.93523,2541.2,2540.4,0.7796]
[1730860022760,3.93565,2540.9,2540.4,0.7796]
[1730860022919,4.73617,2540.7,2539.7,3.93742]
[1730860023250,4.73617,2540.7,2539.8,3.9373]
[1730860023251,0.8001,2540.7,2539.8,3.9373]
[1730860023557,0.8001,2540.1,2539.9,0.34735856]
[1730860023859,3.93718,2539.9,2539.2,0.69471713]
[1730860024152,0.8001,2540.1,2539.0,0.34772205]
[1730860024153,3.93764,2539.6,2539.0,0.34772205]
[1730860024358,0.8001,2539.5,2538.9,0.34772205]
[1730860024518,4.73789,2539.5,2538.9,0.34772205]
[1730860024718,0.8001,2539.5,2538.9,0.34772205]
[1730860024984,0.8001,2539.5,2538.6,3.93902]
[1730860025288,0.8001,2539.5,2538.7,0.34784301]
[1730860025780,1.273873,2539.5,2538.9,3.9387]
[1730860025938,0.8001,2539.5,2539.0,0.07875987]
[1730860026138,4.73788,2539.5,2538.7,3.93888]
[1730860026375,0.8001,2539.5,2538.8,0.904897]
[1730860026545,3.93839,2539.2,2538.8,0.55686083]
[1730860026746,3.93842,2539.1,2538.5,0.38803617]
[1730860026975,3.93842,2539.1,2538.5,0.04]
[1730860027178,3.93842,2539.1,2538.5,0.11877696]
[1730860027340,0.8001,2538.9,2538.5,0.04]
[1730860027539,3.0,2539.8,2538.5,0.04]
[1730860027540,0.8001,2539.3,2538.5,0.04]
[1730860027749,0.8001,2539.3,2538.5,3.97932]
[1730860028061,4.73821,2539.3,2538.6,0.34842671]
[1730860028266,4.73821,2539.3,2538.6,0.34850317]
[1730860028449,4.73821,2539.3,2538.6,3.93915]
[1730860028778,5.605919,2539.3,2538.5,3.97922]
[1730860029087,0.8001,2539.3,2538.7,3.93901]
[1730860029281,0.8001,2539.3,2538.8,0.34845904]
[1730860029456,0.8001,2539.3,2538.7,3.93901]
[1730860029787,0.8001,2539.3,2538.8,0.42719338]
[1730860030091,3.93827,2539.2,2538.5,3.97926]
[1730860030252,3.93844,2539.1,2538.6,0.34846661]
[1730860030586,3.93844,2539.1,2538.5,0.38846661]
[1730860030882,4.73824,2539.3,2538.5,0.04]
[1730860031071,4.73824,2539.3,2538.7,3.939]
[1730860031269,0.8001,2539.3,2538.9,3.93856]
[1730860031442,0.8001,2539.3,2538.8,0.07876885]
[1730860031443,4.73822,2539.3,2538.8,0.07876885]
[1730860031644,4.73822,2539.3,2538.6,0.34856056]
[1730860032091,4.73822,2539.3,2538.6,3.9391]
[1730860032590,4.73822,2539.3,2538.5,4.75886]
[1730860032758,4.73822,2539.3,2538.5,8.69805]
[1730860032963,4.73822,2539.3,2538.6,3.93913]
[1730860033294,0.8001,2539.3,2538.9,3.93858]
[1730860033781,0.8001,2539.7,2539.1,3.93826]
[1730860034090,0.8001,2539.7,2539.2,0.07875979]
[1730860034277,3.93702,2540.0,2539.4,3.93782]
[1730860034448,3.93737,2539.8,2539.0,3.93844]
[1730860034652,0.8001,2539.6,2539.0,3.93844]
[1730860034847,0.8001,2539.6,2538.8,3.93882]
[1730860035050,3.93805,2539.4,2538.6,7.87811]
[1730860035290,3.9381,2539.3,2538.6,3.93902]
[1730860035586,0.787615,2539.2,2538.5,0.04]
[1730860035769,4.73774,2539.6,2538.9,3.93869]
[1730860035945,4.73711,2540.0,2539.2,3.93822]
[1730860036147,4.73711,2540.0,2539.2,7.87642]
[1730860036346,8.67424,2540.0,2539.2,3.9382]
[1730860036545,4.73711,2540.0,2539.2,3.9382]
[1730860036876,3.9372,2539.9,2539.2,3.9382]
[1730860037046,3.9372,2539.9,2538.9,0.7796]
[1730860037047,3.93773,2539.6,2538.9,3.93869]
[1730860037245,3.93799,2539.4,2538.6,3.93915]
[1730860037445,0.8001,2539.3,2538.6,3.93915]
[1730860037646,0.393773,2539.5,2538.8,3.93876]
[1730860037949,0.393773,2539.5,2538.7,3.93902]
[1730860038249,3.93803,2539.4,2538.7,3.9389]
[1730860038448,0.8001,2539.7,2538.5,0.8196]
[1730860038449,0.8001,2539.7,2538.5,0.8296]
[1730860038681,0.8001,2539.7,2539.2,3.93814]
[1730860039066,0.8001,2539.7,2539.2,7.87629]
[1730860039277,0.8001,2539.7,2539.2,3.93814]
[1730860039470,0.8001,2539.7,2539.1,3.9383]
[1730860039665,3.93763,2539.6,2538.8,3.9388]
[1730860040002,3.93763,2539.6,2538.8,3.93738469]
[1730860040202,0.8001,2539.7,2539.3,3.93807]
[1730860040517,0.8001,2539.7,2539.1,3.93836]
[1730860040695,0.8001,2539.7,2539.1,3.9383]
[1730860040893,0.8001,2539.7,2539.2,3.93821]
[1730860041128,3.93762,2539.6,2538.7,3.93902]
[1730860041308,3.93762,2539.6,2539.0,3.93855]
[1730860041516,3.93762,2539.6,2539.0,7.87701]
[1730860041824,3.93762,2539.6,2538.8,7.87755]
[1730860042032,4.7376,2539.7,2538.7,3.93893]
[1730860042201,3.93773,2539.6,2538.9,3.93861]
[1730860042387,3.93773,2539.6,2539.0,3.93854]
[1730860043130,0.8001,2539.7,2539.2,3.93811]
[1730860043289,0.8001,2539.7,2539.1,3.93831]
[1730860043492,4.73758,2539.7,2539.1,3.93831]
[1730860043720,4.73758,2539.7,2538.9,3.93862]
[1730860043721,4.73758,2539.7,2539.0,3.93854]
[1730860044013,0.8001,2539.7,2538.5,0.8196]
[1730860044218,3.93834,2539.2,2538.5,4.7588]
[1730860044407,3.93795,2539.4,2538.6,0.07877037]
[1730860044714,3.93795,2539.4,2538.8,3.93875]
[1730860045139,3.93828,2539.2,2538.6,3.93906]
[1730860045344,3.93795,2539.4,2538.7,3.93898]
[1730860045546,3.93834,2539.2,2538.6,3.93906]
[1730860045745,7.87671,2539.2,2538.6,3.93906]
[1730860046044,7.87671,2539.2,2538.5,0.04]
[1730860046045,3.93881,2538.9,2538.5,0.04]
[1730860047067,4.73927,2538.6,2538.5,0.04]
[1730860047347,3.93917,2538.6,2538.5,0.04]
[1730860047508,4.73875,2539.0,2538.5,0.04]
[1730860047709,0.8001,2539.0,2538.5,0.04]
[1730860048051,8.67738,2539.0,2538.5,0.04]
[1730860048343,1.667838,2539.0,2538.5,0.04]
[1730860048519,3.93917,2538.6,2538.5,0.04]
[1730860049309,4.76067,2538.6,2538.5,0.04]
[1730860049836,0.8215,2538.6,2538.5,0.04]
[1730860050358,0.8215,2538.9,2538.5,0.04]
[1730860050509,0.8215,2539.4,2538.7,3.93894]
[1730860050708,0.8215,2539.4,2538.9,3.93859]
[1730860051018,0.8215,2539.4,2538.7,3.93891]
[1730860051019,4.75953,2539.4,2538.7,3.93891]
[1730860051219,4.75953,2539.4,2538.8,3.93883]
[1730860051428,4.75953,2539.4,2538.6,3.93905]
[1730860051429,3.93809,2539.3,2538.6,3.93905]
[1730860051613,4.75953,2539.4,2538.5,0.04]
[1730860051614,0.8215,2539.4,2538.5,0.04]
[1730860051951,3.93874,2538.9,2538.5,0.04]
[1730860052823,3.93903,2538.7,2538.5,0.04]
[1730860053022,4.726458,2538.9,2538.5,0.04]
[1730860053023,0.8215,2538.8,2538.5,0.04]
[1730860053235,3.93856,2539.0,2538.5,0.04]
[1730860053547,0.8215,2539.1,2538.6,3.93914]
[1730860053745,0.8215,2539.1,2538.5,0.04]
[1730860053954,0.8215,2539.1,2537.2,0.58362477]
[1730860053955,0.8215,2538.5,2537.2,0.58362477]
[1730860054261,0.8215,2538.5,2536.8,5.10833458]
[1730860054262,3.94095,2537.5,2536.8,5.10833458]
[1730860054459,4.417385,2537.4,2536.8,1.16637458]
[1730860054615,3.94137,2537.2,2536.8,1.16637458]
[1730860054811,3.94137,2537.2,2536.4,3.94254]
[1730860054812,3.94137,2537.2,2536.9,1.16637458]
[1730860055049,4.417295,2537.4,2536.4,3.94254]
[1730860055050,3.9412,2537.3,2536.4,3.94254]
[1730860055384,3.94105,2537.4,2536.6,3.94217]
[1730860055569,3.9409,2537.5,2536.7,3.94211]
[1730860055775,3.94114,2537.4,2536.6,3.94217]
[1730860056569,3.94114,2537.4,2536.7,3.9421]
[1730860056768,4.76224,2537.6,2536.8,3.94193]
[1730860057091,3.94089,2537.5,2536.8,3.94193]
[1730860057249,4.76224,2537.6,2536.8,3.94193]
[1730860057450,0.8215,2537.6,2537.0,3.94156]
[1730860057686,4.76225,2537.6,2536.9,3.94173]
[1730860057887,0.8215,2537.6,2537.0,3.94166]
[1730860058058,0.8215,2537.6,2536.8,3.94183]
[1730860058059,3.94089,2537.5,2536.8,3.94183]
[1730860058393,4.76236,2537.6,2536.9,3.9418]
[1730860058576,4.76236,2537.6,2536.8,3.94183]
[1730860058887,3.94122,2537.3,2536.7,0.8193]
[1730860059066,3.94107,2537.4,2536.7,4.76139]
[1730860059254,3.9412,2537.3,2536.7,4.76139]
[1730860059886,3.94107,2537.4,2536.7,4.76139]
[1730860060391,3.94107,2537.4,2536.7,4.76132]
[1730860060588,8.70313,2537.6,2536.7,4.76135]
[1730860060892,4.76227,2537.6,2536.9,7.88358]
[1730860061207,0.8215,2538.4,2537.6,3.94065]
[1730860061492,0.8215,2538.4,2537.4,0.8193]
[1730860061493,0.8215,2538.4,2537.7,3.94044]
[1730860061707,4.76102,2538.4,2537.7,3.94044]
[1730860061993,3.93973,2538.3,2537.6,3.94069]
[1730860062161,4.415832,2538.3,2537.6,3.94069]
[1730860062490,0.476102,2538.3,2537.7,3.94057]
[1730860062706,8.70064,2538.4,2537.7,3.94057]
[1730860063215,8.70064,2538.4,2537.9,3.94024]
[1730860063216,0.8215,2538.4,2537.9,3.94024]
[1730860063520,0.869803,2539.1,2538.1,3.93991]
[1730860063521,0.7626,2538.9,2538.1,3.93991]
[1730860063812,0.7626,2538.9,2538.0,0.07879491]
[1730860063813,3.93891,2538.8,2538.0,3.94009]
[1730860063982,4.802916,2538.8,2538.1,3.93994]
[1730860064180,4.802916,2538.8,2537.9,3.94017]
[1730860064588,4.802916,2538.8,2537.7,3.94049]
[1730860064589,3.93927,2538.6,2537.7,3.94046]
[1730860064788,3.93927,2538.6,2537.8,3.94041]
[1730860064988,3.93927,2538.6,2537.7,3.94046]
[1730860065191,3.93953,2538.4,2537.7,3.94046]
[1730860065510,1.156553,2538.3,2537.5,3.94077]
[1730860065806,1.156553,2538.3,2537.8,3.94032]
[1730860065807,0.7626,2538.3,2537.8,3.94032]
[1730860066110,0.5565516,2538.7,2537.4,0.8193]
[1730860066111,0.7626,2538.8,2538.0,3.94011]
[1730860066308,0.7626,2538.8,2538.3,3.93963]
[1730860066812,3.93847,2539.1,2537.6,3.94059]
[1730860066813,0.7626,2538.6,2537.6,3.94059]
[1730860067009,0.7626,2538.6,2537.8,3.94041]
[1730860067183,8.6412,2538.6,2537.8,3.94041]
[1730860067384,4.70189,2538.6,2537.7,3.94052]
[1730860067581,3.94062,2537.7,2537.0,3.94161]
[1730860067893,0.7626,2537.6,2537.0,3.94153]
[1730860068518,0.7626,2537.6,2536.9,3.94168]
[1730860068895,10.07614736,2537.6,2536.7,4.74469]
[1730860069111,3.94111,2537.4,2536.6,3.94224]
[1730860069272,3.94111,2537.4,2536.4,3.94254]
[1730860069478,3.94162,2537.1,2536.4,3.94254]
[1730860069818,0.7626,2537.0,2536.4,3.94249]
[1730860070506,0.7626,2537.0,2536.2,4.72092718]
[1730860070710,3.94211,2536.8,2536.2,0.77813718]
[1730860070909,3.94214,2536.7,2536.2,0.77813718]
[1730860071210,3.94214,2536.7,2535.8,7.88688]
[1730860071211,4.730537,2536.7,2535.8,7.88688]
[1730860071417,0.7626,2536.8,2535.7,0.0631951]
[1730860071618,3.9427,2536.4,2535.7,4.0068551]
[1730860071773,3.94231,2536.6,2535.8,3.9435]
[1730860071973,0.68138662,2536.7,2535.8,3.9435]
[1730860072207,0.7626,2536.6,2535.8,3.9435]
[1730860072409,3.94257,2536.5,2535.8,3.9435]
[1730860072972,0.7626,2536.6,2535.7,0.0631951]
[1730860073206,3.94306,2536.1,2535.7,0.0631951]
[1730860073409,4.70584,2536.0,2535.7,0.0631951]
[1730860073583,0.7626,2536.0,2535.7,0.0631951]
[1730860073984,4.70582,2536.0,2535.7,0.0631951]
[1730860074809,4.70583,2536.0,2535.7,0.0631951]
[1730860075305,0.01,2536.7,2535.7,0.0631951]
[1730860075306,0.7626,2536.4,2535.7,0.0631951]
[1730860075513,4.70519,2536.4,2535.7,0.0631951]
[1730860075718,5.1757,2536.4,2535.7,0.0631951]
[1730860076018,5.1757,2536.4,2535.7,39.0067751]
[1730860076218,5.1757,2536.4,2535.7,35.0631951]
[1730860076415,3.94292,2536.2,2535.7,0.0631951]
[1730860076786,0.51757,2536.3,2535.7,35.0631951]
[1730860076992,3.94286,2536.3,2535.7,35.0631951]
[1730860077204,4.70524,2536.4,2535.8,3.9435]
[1730860077525,4.70524,2536.4,2535.7,35.0631951]
[1730860077526,3.94275,2536.3,2535.7,35.0631951]
[1730860078080,3.94316,2536.1,2535.7,35.0631951]
[1730860078284,0.7626,2536.4,2535.7,0.0631951]
[1730860078495,4.70532,2536.4,2535.7,0.0631951]
[1730860078698,3.94277,2536.3,2535.7,35.0631951]
[1730860079024,4.70532,2536.4,2535.7,4.39255923]
[1730860079227,0.8122,2536.8,2536.3,3.94259]
[1730860079521,3.94084,2537.6,2536.8,3.94184]
[1730860079683,3.94084,2537.6,2536.4,3.94248]
[1730860079684,3.94136,2537.2,2536.4,3.94248]
[1730860079883,0.8122,2537.1,2536.4,3.94248]
[1730860080191,3.94179,2537.0,2536.3,38.94273]
[1730860080396,3.94182,2536.9,2536.4,0.34881111]
[1730860080610,8.69546,2537.1,2536.3,38.94261]
[1730860080915,4.75381,2537.1,2536.4,4.02141485]
[1730860081123,7.88258,2537.3,2536.6,3.94228]
[1730860081287,3.94124,2537.3,2536.6,3.94228]
[1730860081481,3.94124,2537.3,2536.4,3.94257]
[1730860081716,3.94153,2537.1,2536.5,4.29136988]
[1730860081899,3.94153,2537.1,2536.5,3.94243]
[1730860083127,3.94031,2537.9,2537.3,3.94118]
[1730860083433,4.75233,2538.0,2537.4,3.94103]
[1730860083788,4.75233,2538.0,2537.4,38.94103]
[1730860084026,8.69258,2538.0,2537.3,3.94116]
[1730860084182,3.94026,2537.9,2537.1,4.72806]
[1730860084386,3.94026,2537.9,2537.2,4.29023917]
[1730860084387,7.88066,2537.9,2537.2,4.29023917]
[1730860084629,3.94062,2537.7,2537.1,4.72806]
[1730860084807,3.94074,2537.6,2537.1,4.72806]
[1730860085163,3.94062,2537.7,2537.1,4.72806]
[1730860085886,3.94107,2537.4,2536.9,0.69794287]
[1730860086087,3.94166,2537.0,2536.9,1.04704169]
[1730860086335,3.94148,2537.2,2536.9,0.69794287]
[1730860086542,3.94166,2537.0,2536.9,0.69794287]
[1730860087388,3.9415,2537.1,2536.9,0.69794287]
[1730860088089,4.75347,2537.3,2536.9,0.69794287]
[1730860088726,3.9409,2537.5,2536.7,7.88404]
[1730860088727,3.9409,2537.5,2536.8,4.37027003]
[1730860088935,0.8122,2537.6,2536.8,4.37027003]
[1730860088936,3.94032,2537.9,2537.1,3.94144]
[1730860089234,3.94032,2537.9,2537.3,3.94116]
[1730860089401,3.93968,2538.3,2537.1,3.94144]
[1730860089402,3.9397,2538.3,2537.5,3.94088]
[1730860089742,3.9397,2538.3,2537.1,35.0]
[1730860089743,0.8122,2538.4,2537.9,3.94012]
[1730860092135,0.8122,2538.4,2537.8,3.94038]
[1730860092299,4.75172,2538.4,2537.8,3.94038]
[1730860092499,4.75172,2538.4,2537.7,3.94057]
[1730860092701,3.93971,2538.3,2537.3,0.7866]
[1730860092897,3.93984,2538.2,2537.6,3.94069]
[1730860093106,3.93995,2538.1,2537.4,3.94104]
[1730860093311,3.93995,2538.1,2537.4,3.94094]
[1730860093513,3.94016,2538.0,2537.4,3.94091]
[1730860093732,3.94028,2537.9,2537.2,3.94124]
[1730860094038,3.94145,2537.2,2536.6,0.78052383]
[1730860094244,3.94145,2537.2,2536.6,4.72267383]
[1730860094838,3.94145,2537.2,2536.6,0.78052383]
[1730860095055,3.94168,2537.0,2536.6,0.78052383]
[1730860095195,7.88347,2537.0,2536.6,0.78052383]
[1730860095400,3.94168,2537.0,2536.6,0.78052383]
[1730860095800,3.9421,2536.8,2536.6,0.78052383]
[1730860095996,3.9421,2536.8,2535.8,4.79875279]
[1730860095997,3.94212,2536.7,2535.9,0.55942933]
[1730860096304,0.8122,2536.6,2535.9,0.34970461]
[1730860096530,3.94271,2536.4,2535.8,0.34970461]
[1730860096823,3.94271,2536.4,2535.8,3.94338]
[1730860096824,3.94259,2536.4,2535.8,3.94338]
[1730860097135,3.94245,2536.5,2535.8,3.94338]
[1730860097136,3.94245,2536.5,2535.8,3.9435]
[1730860097465,0.8122,2536.6,2536.0,3.94311]
[1730860097654,0.8122,2536.6,2536.1,3.94304]
[1730860097857,0.8122,2536.9,2535.8,3.94347]
[1730860098028,4.75406,2536.9,2535.8,3.94347]
[1730860098224,0.8122,2536.9,2535.8,3.94347]
[1730860098426,3.94247,2536.5,2535.9,0.35020464]
[1730860099060,3.94213,2536.7,2535.9,0.35020464]
[1730860099261,4.75409,2536.9,2536.1,3.94292]
[1730860099588,0.8122,2537.2,2536.3,6.06126623]
[1730860099724,0.8122,2537.2,2536.7,7.88405]
[1730860100066,0.8122,2537.2,2536.5,3.94232]
[1730860100369,0.8122,2537.2,2536.6,35.0]
[1730860100370,3.94152,2537.1,2536.6,35.0]
[1730860100522,3.94152,2537.1,2536.4,3.94256]
[1730860100523,3.94168,2537.0,2536.4,3.94256]
[1730860100722,3.94177,2537.0,2536.2,3.94287]
[1730860100928,4.7536,2537.2,2536.6,3.94217]
[1730860101362,3.94175,2537.0,2536.4,3.94256]
[1730860101530,3.94164,2537.1,2536.4,3.94256]
[1730860101725,3.94097,2537.5,2536.7,3.94212]
[1730860101924,0.8122,2537.6,2536.7,3.942]
[1730860101925,4.75293,2537.6,2536.7,3.942]
[1730860102231,4.75293,2537.6,2536.8,3.94191]
[1730860102232,3.941,2537.5,2536.8,3.94191]
[1730860102428,0.8122,2537.6,2537.1,3.9415]
[1730860103268,0.8122,2537.6,2536.9,3.9417]
[1730860103457,3.9409,2537.5,2536.9,3.9417]
[1730860103823,4.75231,2538.0,2536.8,3.94185]
[1730860104023,0.8122,2538.0,2537.1,3.94138]
[1730860104339,0.8122,2538.0,2536.9,3.94181]
[1730860104340,3.94052,2537.8,2536.9,7.8834]
[1730860104532,3.94052,2537.8,2536.9,3.94169]
[1730860104533,3.94079,2537.6,2536.9,3.94169]
[1730860104753,3.94088,2537.5,2536.9,3.94169]
[1730860104969,3.94116,2537.4,2536.7,5.28906083]
[1730860105181,0.8122,2537.3,2536.7,3.9421]
[1730860105464,4.753,2537.6,2536.8,3.94192]
[1730860105668,4.753,2537.6,2536.9,0.07882749]
[1730860105669,0.8122,2537.6,2536.9,0.07882749]
[1730860105968,3.94042,2537.8,2537.1,3.94148]
[1730860106272,3.94083,2537.6,2536.9,3.94172]
[1730860106426,7.88168,2537.6,2537.0,3.94156]
[1730860106632,3.94083,2537.6,2537.0,3.94156]
[1730860107033,3.94083,2537.6,2537.1,3.9415]
[1730860107240,3.94083,2537.6,2537.0,3.94156]
[1730860108133,3.94046,2537.8,2537.2,3.94131]
[1730860108482,0.8037,2537.4,2536.6,3.94227]
[1730860108680,0.8037,2537.4,2536.8,3.94187]
[1730860108848,0.8037,2537.4,2536.8,7.88374]
[1730860109057,0.8037,2537.7,2537.1,3.9415]
[1730860109359,3.94011,2538.0,2537.2,3.94126]
[1730860109551,4.74369,2538.1,2537.0,3.94166]
[1730860109864,0.8037,2538.1,2537.6,3.94071]
[1730860110563,0.8037,2538.1,2537.7,3.94057]
[1730860110772,0.8037,2538.1,2537.6,3.94071]
[1730860111086,3.93978,2538.3,2537.6,3.94062]
[1730860111250,3.93978,2538.3,2537.1,3.94146]
[1730860111251,3.94027,2537.9,2537.1,0.7955]
[1730860111463,3.94025,2538.0,2537.3,3.94109]
[1730860111663,0.8037,2538.4,2537.8,3.94039]
[1730860111869,0.8037,2538.4,2537.9,0.07880063]
[1730860112080,4.74329,2538.4,2537.8,3.94039]
[1730860112283,4.74329,2538.4,2537.2,0.56098968]
[1730860112284,3.94017,2538.0,2537.2,0.56098968]
[1730860112594,0.8037,2538.4,2537.2,0.56098968]
[1730860112595,3.93983,2538.2,2537.5,3.94075]
[1730860112759,3.94054,2537.8,2537.2,3.94131]
[1730860112949,0.8037,2538.1,2537.3,0.35075023]
[1730860112950,3.94036,2537.9,2537.3,0.35075023]
[1730860113155,3.94036,2537.9,2537.2,3.94131]
[1730860113450,8.6838,2538.1,2537.4,3.94099]
[1730860113798,3.94016,2538.0,2537.4,3.94099]
[1730860113952,0.8037,2538.1,2537.8,3.9404]
[1730860114152,3.93913,2538.7,2538.0,3.94008]
[1730860114601,3.93919,2538.6,2538.0,3.94008]
[1730860114897,3.93943,2538.5,2537.8,7.88066]
[1730860115049,3.93943,2538.5,2537.8,7.88061]
[1730860115457,3.93943,2538.5,2537.6,3.94067]
[1730860115691,3.93971,2538.3,2537.6,3.94067]
[1730860115877,3.93971,2538.3,2537.4,8.6774]
[1730860116067,3.93995,2538.1,2537.5,0.35046328]
[1730860116272,4.74309,2538.5,2537.9,3.94015]
[1730860116485,0.8037,2538.5,2537.9,3.94015]
[1730860116800,4.74314,2538.5,2537.7,3.94047]
[1730860117000,4.74314,2538.5,2537.9,3.94018]
[1730860117158,3.93974,2538.3,2537.7,3.94049]
[1730860117358,3.93974,2538.3,2537.5,3.9408]
[1730860117560,0.01,2539.0,2537.5,3.9408]
[1730860117561,0.8037,2539.0,2538.1,0.7955]
[1730860117859,0.8037,2539.0,2538.5,3.93918]
[1730860118161,4.74179,2539.3,2538.5,3.93918]
[1730860118485,4.74179,2539.3,2538.6,3.93916]
[1730860118690,3.93785,2539.5,2538.4,0.7955]
[1730860118859,0.8037,2539.2,2538.7,3.939]
[1730860119073,0.8037,2539.2,2538.6,3.93906]
[1730860120232,0.8037,2539.2,2538.7,3.93902]
[1730860120382,0.8037,2539.2,2538.9,3.9387]
[1730860120719,0.8037,2539.2,2538.7,4.01779133]
[1730860120720,0.8037,2539.6,2539.2,3.93813]
[1730860120883,3.93692,2540.1,2539.2,3.93813]
[1730860120884,0.8037,2540.0,2539.4,3.93782]
[1730860121426,0.8037,2540.0,2539.2,3.93813]
[1730860121427,3.93717,2539.9,2539.2,3.93813]
[1730860121644,0.02,2540.7,2539.1,0.7955]
[1730860121645,0.0631951,2540.8,2539.8,5.37135204]
[1730860121793,0.0631951,2540.8,2540.7,3.93592]
[1730860121997,0.0631951,2540.8,2540.7,7.29324706]
[1730860122194,0.01,2542.7,2541.5,3.93459]
[1730860122440,0.8037,2543.0,2541.7,0.7955]
[1730860122591,0.8668951,2543.4,2542.0,3.93391]
[1730860122797,0.8668951,2543.4,2542.0,4.01257267]
[1730860122798,4.7986451,2543.4,2542.0,4.01257267]
[1730860123021,3.93221,2543.1,2542.0,3.93391]
[1730860123238,4.7986651,2543.4,2542.2,3.93358]
[1730860123532,0.0631951,2543.4,2542.4,0.7783]
[1730860124036,3.93203,2543.3,2542.4,0.7783]
[1730860124236,3.93219,2543.2,2542.1,3.93371]
[1730860124399,3.93213,2543.2,2542.1,3.93371]
[1730860124733,3.93273,2542.8,2542.0,35.0]
[1730860125039,3.93255,2542.9,2542.0,35.0]
[1730860125205,0.393273,2542.7,2541.9,0.7783]
[1730860125419,0.393273,2542.7,2541.9,4.71231]
[1730860125744,3.93252,2542.9,2541.9,4.71231]
[1730860125926,0.7689,2543.0,2541.7,3.93435]
[1730860125927,0.470142,2542.8,2541.7,3.93435]
[1730860126127,0.7689,2543.0,2541.5,9.95302839]
[1730860126128,0.7689,2543.0,2541.5,6.01839839]
[1730860126305,3.93282,2542.7,2541.8,3.93407]
[1730860126504,0.01,2542.9,2541.6,3.93452]
[1730860126705,3.93329,2542.4,2541.5,3.93468]
[1730860126901,3.93329,2542.4,2541.4,0.7783]
[1730860126902,0.393329,2542.3,2541.4,0.7783]
[1730860127146,0.393329,2542.3,2541.6,3.93447]
[1730860127306,3.02,2542.9,2541.4,0.7783]
[1730860127307,0.02,2542.9,2541.4,0.7783]
[1730860127507,3.93359,2542.3,2541.5,3.93467]
[1730860127934,3.93285,2542.7,2541.4,0.7783]
[1730860128131,0.02,2542.9,2541.5,3.93468]
[1730860128340,3.93345,2542.3,2541.5,3.93468]
[1730860128555,3.9339,2542.1,2541.4,0.7783]
[1730860128736,0.0631951,2543.4,2542.5,0.01]
[1730860128946,0.0631951,2543.4,2541.2,0.34225107]
[1730860128947,0.0631951,2543.4,2543.0,0.01]
[1730860129139,0.0631951,2543.4,2543.3,0.01]
[1730860129420,0.0631951,2543.4,2542.7,3.93278]
[1730860129817,0.0631951,2543.4,2542.3,3.93344]
[1730860130111,0.0631951,2543.4,2542.2,0.01]
[1730860130112,3.93189,2543.3,2542.1,4.71199]
[1730860130376,0.0631951,2543.4,2542.5,0.01]
[1730860130531,0.0631951,2543.4,2543.0,0.01]
[1730860130881,0.0631951,2543.4,2543.0,3.94235]
[1730860131237,0.0631951,2543.4,2542.9,3.93247]
[1730860131567,0.0631951,2543.4,2542.6,0.01]
[1730860131770,0.0631951,2543.4,2542.5,9.95151839]
[1730860131771,0.0631951,2543.4,2542.5,0.01]
[1730860131957,3.9949851,2543.4,2542.5,0.01]
[1730860132157,0.01,2544.1,2542.5,0.01]
[1730860132158,0.7789,2545.7,2543.1,0.01]
[1730860132480,4.06543157,2546.7,2544.6,9.94828839]
[1730860132481,0.7689,2546.0,2544.6,9.94828839]
[1730860132694,4.69664,2546.0,2544.6,9.94828839]
[1730860132836,3.92821,2545.7,2544.5,0.01]
[1730860133186,3.92837,2545.6,2544.3,0.01]
[1730860133490,0.61794797,2545.8,2544.4,35.0]
[1730860133783,3.92883,2545.3,2544.2,4.71865]
[1730860134103,3.92857,2545.5,2544.4,0.01]
[1730860134290,3.92881,2545.3,2544.2,4.70865]
[1730860134587,0.61794797,2545.8,2544.1,0.01]
[1730860134588,0.7689,2544.9,2544.1,0.01]
[1730860134768,4.69835,2544.9,2543.8,0.01]
[1730860135141,0.01,2545.3,2544.3,0.01]
[1730860135142,0.7689,2545.3,2544.3,0.01]
[1730860135342,0.7689,2545.3,2544.3,0.0885954]
[1730860135569,1.238656,2545.3,2544.3,0.01]
[1730860135772,0.0631951,2545.9,2544.7,0.01]
[1730860135974,0.0631951,2545.9,2545.8,4.71633]
[1730860136187,1.99573705,2547.5,2546.6,0.01]
[1730860136188,5.92121705,2547.5,2546.6,0.01]
[1730860136357,5.92121705,2547.5,2545.9,3.01]
[1730860136358,3.92599,2547.2,2546.3,0.01]
[1730860136561,0.057973,2547.4,2545.8,4.70633]
[1730860136562,3.92635,2546.9,2545.8,0.7783]
[1730860136791,0.7689,2547.0,2545.5,3.92849]
[1730860136792,0.7689,2547.0,2545.5,0.01]
[1730860136942,0.469525,2546.8,2545.9,0.01]
[1730860137347,0.469525,2546.8,2545.4,0.7783]
[1730860137348,0.057973,2547.4,2546.4,0.7783]
[1730860137548,0.057973,2547.4,2546.9,0.01]
[1730860137865,0.057973,2547.4,2545.9,0.7783]
[1730860137866,0.26334401,2547.4,2545.9,0.7783]
[1730860138069,4.69561,2546.7,2545.8,0.01]
[1730860138513,4.19891401,2547.4,2545.8,0.01]
[1730860138514,0.8234,2547.3,2545.8,0.01]
[1730860138715,0.8234,2547.3,2545.3,0.01]
[1730860138716,0.057973,2547.4,2546.9,0.7702]